fUSD/lending_fUSD_20241110
["ID","MTS","AMOUNT","RATE_DAILY","PERIOD"]
[341794219,1731232279614,-500.0,0.00014499,2]
[341794220,1731232279623,-536.97,0.00014499,2]
[341794221,1731232279632,-604.23,0.00014499,2]
[341794222,1731232279641,-1681.28,0.00014499,2]
[341794223,1731232279651,-652.0,0.00014499,2]
[341794224,1731232279661,-2255.7,0.00014499,2]
[341794225,1731232279671,-1015.81,0.00014499,2]
[341794226,1731232279680,-1814.39,0.00014499,2]
[341794227,1731232279690,-150.33103448,0.00014499,2]
[341794228,1731232279699,-500.0,0.00014499,2]
[341794229,1731232279709,-581.80896549,0.00014499,2]
[341794230,1731232279722,-1147.54103451,0.00014499,2]
[341794231,1731232279731,-536.97,0.00014499,2]
[341794232,1731232279741,-1681.28,0.00014499,2]
[341794233,1731232279751,-652.0,0.00014499,2]
[341794234,1731232279761,-689.49956549,0.00014499,2]
[341794235,1731232279794,-1566.20043451,0.00014499,2]
[341794236,1731232279804,-1015.81,0.00014499,2]
[341794237,1731232279814,-1814.39,0.00014499,2]
[341794238,1731232279823,-966.98,0.00014499,2]
[341794239,1731232279833,-500.0,0.00014499,2]
[341794240,1731232279843,-536.97,0.00014499,2]
[341794241,1731232279852,-1529.64956549,0.00014499,2]
[341794242,1731232279868,-199.70043451,0.00014499,2]
[341794243,1731232279877,-652.0,0.00014499,2]
[341794244,1731232279886,-2255.7,0.00014499,2]
[341794245,1731232279895,-1015.81,0.00014499,2]
[341794246,1731232279905,-966.98,0.00014499,2]
[341794247,1731232279914,-1681.28,0.00014499,2]
[341794248,1731232279924,-500.0,0.00014499,2]
[341794249,1731232279936,-536.97,0.00014499,2]
[341794250,1731232279947,-1729.35,0.00014499,2]
[341794251,1731232279957,-652.0,0.00014499,2]
[341794252,1731232279969,-10052.95,0.00014499,2]
[341794253,1731232279979,-1814.39,0.00014499,2]
[341794254,1731232279989,-2255.7,0.00014499,2]
[341794255,1731232279998,-966.98,0.00014499,2]
[341794256,1731232280012,-1681.28,0.00014499,2]
[341794257,1731232280022,-500.0,0.00014499,2]
[341794258,1731232280031,-536.97,0.00014499,2]
[341794259,1731232280041,-1729.35,0.00014499,2]
[341794260,1731232280051,-1015.81,0.00014499,2]
[341794261,1731232280061,-10052.95,0.00014499,2]
[341794262,1731232280070,-652.0,0.00014499,2]
[341794263,1731232280081,-2255.7,0.00014499,2]
[341794264,1731232280090,-1814.39,0.00014499,2]
[341794265,1731232280100,-966.98,0.00014499,2]
[341794266,1731232280109,-1189.91872481,0.00014499,2]
[341794267,1731232280269,-491.36127519,0.00014499,2]
[341794268,1731232280279,-175.20124093,0.00014499,2]
[341794276,1731232341339,160.0,0.00027,60]
[341794278,1731232531514,327.21,0.00011655,2]
[341794280,1731232697712,18545.76495025,0.00027,60]
[341794281,1731232931575,304.91169602,0.00014497,120]
[341794284,1731233003533,154.94,0.0002565,60]
[341794285,1731233012173,500.0,0.00026814,120]
[341794286,1731233014682,200.0,0.00024714,120]
[341794287,1731233067930,1000.0,0.00014499,10]
[341794288,1731233068340,1000.0,0.00014499,10]
[341794289,1731233117262,358739.67,0.00013619,7]
[341794290,1731233132714,1529.86,0.00013619,7]
[341794291,1731233188612,150.0,0.00027,60]
[341794292,1731233190077,150.0,0.00027,60]
[341794293,1731233190362,150.0,0.00027,60]
[341794294,1731233190798,150.0,0.00027,60]
[341794295,1731233191281,150.0,0.00027,60]
[341794296,1731233191785,150.0,0.00027,60]
[341794297,1731233192323,150.0,0.00027,60]
[341794298,1731233193690,150.0,0.00027,60]
[341794299,1731233193782,150.0,0.00027,60]
[341794300,1731233193885,150.0,0.00027,60]
[341794301,1731233194700,150.0,0.00027,60]
[341794302,1731233194874,150.0,0.00027,60]
[341794303,1731233195288,150.0,0.00027,60]
[341794304,1731233195579,150.0,0.00027,60]
[341794305,1731233196171,150.0,0.00027,60]
[341794306,1731233196766,150.0,0.00027,60]
[341794307,1731233205968,150.0,0.00027,60]
[341794308,1731233206402,150.0,0.00027,60]
[341794309,1731233206849,150.0,0.00027,60]
[341794310,1731233207373,150.0,0.00027,60]
[341794311,1731233209012,150.0,0.00027,60]
[341794312,1731233215945,150.0,0.00027,60]
[341794313,1731233225143,-250.0,0.00013003,2]
[341794314,1731233225164,-392.15519023,0.00013031,2]
[341794315,1731233225184,-392.15519023,0.00013032,2]
[341794316,1731233225205,-689.11,0.00013039,2]
[341794317,1731233225228,-160.57,0.00013064,2]
[341794318,1731233225249,-544.52413739,0.00013132,2]
[341794319,1731233227261,261.551114,0.00027,60]
[341794320,1731233234143,-392.15519023,0.00013032,2]
[341794321,1731233234168,-1165.40261145,0.00013132,2]
[341794322,1731233239554,-1492.23829554,0.00013132,2]
[341794323,1731233247094,-555.9237865,0.00013132,2]
[341794325,1731233253106,-225.01636922,0.00013132,2]
[341794326,1731233257948,-6248.017764,0.00013123,2]
[341794327,1731233257975,-2751.982236,0.00013132,2]
[341794329,1731233288627,443.19,0.00011961,2]
[341794330,1731233319684,150.0,0.00012505,5]
[341794331,1731233346092,-1677.88543058,0.00013023,2]
[341794332,1731233346114,-300.0,0.00013031,2]
[341794333,1731233346135,-32968.9681245,0.00013032,2]
[341794334,1731233352150,-687.00500912,0.00013032,2]
[341794335,1731233353131,-5655.18515647,0.00013032,2]
[341794336,1731233353152,-16524.25866984,0.00013032,2]
[341794337,1731233355684,-452.66839175,0.00013032,2]
[341794338,1731233356129,-922.99010005,0.00013032,2]
[341794339,1731233356150,-8500.0,0.000131,2]
[341794340,1731233356170,-150.0,0.00013121,2]
[341794341,1731233356191,-279.90482466,0.00013122,2]
[341794342,1731233356213,-500.0,0.00013122,2]
[341794343,1731233356234,-500.0,0.00013122,2]
[341794344,1731233356255,-500.0,0.00013122,2]
[341794345,1731233356278,-500.0,0.00013122,2]
[341794346,1731233356300,-500.0,0.00013122,2]
[341794347,1731233356323,-500.0,0.00013122,2]
[341794348,1731233356347,-500.0,0.00013122,2]
[341794349,1731233356370,-500.0,0.00013122,2]
[341794350,1731233356394,-500.0,0.00013122,2]
[341794351,1731233356414,-500.0,0.00013122,2]
[341794352,1731233356436,-500.0,0.00013122,2]
[341794353,1731233356458,-500.0,0.00013122,2]
[341794354,1731233356480,-500.0,0.00013122,2]
[341794355,1731233356501,-500.0,0.00013122,2]
[341794356,1731233356523,-500.0,0.00013122,2]
[341794357,1731233356544,-500.0,0.00013122,2]
[341794358,1731233356568,-500.0,0.00013122,2]
[341794359,1731233356591,-500.0,0.00013122,2]
[341794360,1731233356612,-500.0,0.00013122,2]
[341794361,1731233356635,-500.0,0.00013122,2]
[341794362,1731233356657,-500.0,0.00013122,2]
[341794363,1731233356683,-313.19537677,0.00013122,2]
[341794364,1731233356705,-4674.4900663,0.00013123,2]
[341794365,1731233356728,-218127.17876943,0.00013123,2]
[341794366,1731233358086,-124241.4404,0.00013123,2]
[341794367,1731233360692,-19719.63825612,0.00013123,2]
[341794368,1731233361075,-46058.95532,0.00013123,2]
[341794369,1731233362092,-48485.60878,0.00013123,2]
[341794376,1731233371862,-5307.84058566,0.00013032,2]
[341794377,1731233371881,-1341.86481179,0.00013032,2]
[341794378,1731233371905,-1998.65861717,0.00013032,2]
[341794379,1731233371925,-64815.36618538,0.00013123,2]
[341794380,1731233374105,-341226.68418152,0.00013123,2]
[341794388,1731233401625,-150.0,0.00013122,2]
[341794389,1731233401648,-12850.0,0.00013123,2]
[341794391,1731233419205,150.0,0.00027,60]
[341794406,1731233432571,-432.05719917,0.00013023,2]
[341794407,1731233432581,-186.30225704,0.00013023,2]
[341794408,1731233432590,-139.34166425,0.00013023,2]
[341794409,1731233432659,-1221.87501474,0.00013023,2]
[341794410,1731233432673,-54977.05574426,0.00013023,2]
[341794411,1731233432682,-467.67,0.00013035,2]
[341794412,1731233432692,-921.85646304,0.00013113,2]
[341794413,1731233432701,-921.85646304,0.00013113,2]
[341794414,1731233432711,-921.85646304,0.00013113,2]
[341794415,1731233432720,-573.11634699,0.00013122,2]
[341794416,1731233432730,-523.95944761,0.00013122,2]
[341794417,1731233432740,-300.0,0.00013122,2]
[341794418,1731233432749,-115464.75672997,0.00013123,2]
[341794424,1731233432814,-1498.39846531,0.00013123,2]
[341794426,1731233432825,-1950.000006,0.00013123,2]
[341794428,1731233432836,-2299.99999766,0.00013123,2]
[341794434,1731233432884,-3987.01681119,0.00013123,2]
[341794437,1731233432895,-2738.36116104,0.00013123,2]
[341794448,1731233432993,-219909.31449141,0.00013123,2]
[341794450,1731233433005,-4468360.8911968,0.00013123,2]
[341794453,1731233433017,-427260.0,0.00013123,2]
[341794571,1731233438448,-587.25,0.00013123,2]
[341794572,1731233438459,-1171.0,0.00013123,2]
[341794573,1731233438471,-5305.36144738,0.00013123,2]
[341794574,1731233438522,-8146819.29005885,0.00013123,2]
[341794575,1731233438534,-5720.81502277,0.00013123,2]
[341794576,1731233438545,-8794.8006278,0.00013123,2]
[341794577,1731233438569,-994.17472469,0.00013123,2]
[341794578,1731233438580,-463.51344381,0.00013123,2]
[341794579,1731233438773,-1600.75,0.00013123,2]
[341794591,1731233440375,-791.6122,0.00013123,2]
[341794594,1731233440387,-434.90520034,0.00013123,2]
[341794619,1731233440675,-3390.06180322,0.00013123,2]
[341794620,1731233441553,-405.79252267,0.00013123,2]
[341794621,1731233441564,-1126.71374511,0.00013123,2]
[341794622,1731233441580,-3164.75,0.00013123,2]
[341794637,1731233443464,-146173.72973095,0.00013123,2]
[341794638,1731233443477,-543772.46938434,0.00013123,2]
[341794639,1731233443488,-384.34999965,0.00013123,2]
[341794640,1731233443550,-1243.9391314,0.00013123,2]
[341794641,1731233443561,-777.69347446,0.00013123,2]
[341794642,1731233443573,-3015.33689156,0.00013123,2]
[341794643,1731233443584,-3787.02751681,0.00013123,2]
[341794644,1731233443615,-16535.4946002,0.00013123,2]
[341794645,1731233443637,-1998.45970101,0.00013123,2]
[341794646,1731233443651,-4658.03670453,0.00013123,2]
[341794647,1731233443726,-947.40643778,0.00013123,2]
[341794648,1731233443738,-1982.95,0.00013123,2]
[341794649,1731233443782,-118749.03397767,0.00013123,2]
[341794650,1731233443794,-446.91429972,0.00013123,2]
[341794651,1731233443826,-5705.23787545,0.00013123,2]
[341794652,1731233443837,-5966.12820384,0.00013123,2]
[341794653,1731233443849,-13121.92254858,0.00013123,2]
[341794654,1731233443860,-317.064,0.00013123,2]
[341794666,1731233446342,-1046.1847932,0.00013123,2]
[341794668,1731233446354,-2348.1976,0.00013123,2]
[341794670,1731233446386,-1332.50558922,0.00013123,2]
[341794673,1731233446432,-3900.75776183,0.00013123,2]
[341794674,1731233446475,-344.849717,0.00013123,2]
[341794675,1731233446487,-9309.10477623,0.00013123,2]
[341794676,1731233446499,-15856.76671909,0.00013123,2]
[341794677,1731233446543,-1668.32821834,0.00013123,2]
[341794678,1731233446555,-371.88291753,0.00013123,2]
[341794679,1731233446567,-1324.8,0.00013123,2]
[341794680,1731233446579,-15792.87247134,0.00013123,2]
[341794681,1731233446616,-302.0,0.00013123,2]
[341794682,1731233446628,-7597.4,0.00013123,2]
[341794683,1731233446639,-5114.97780404,0.00013123,2]
[341794684,1731233446687,-957.52,0.00013123,2]
[341794685,1731233446718,-1600.0,0.00013123,2]
[341794686,1731233446730,-1992.82547722,0.00013123,2]
[341794687,1731233446742,-961.36633003,0.00013123,2]
[341794689,1731233446755,-641.16958297,0.00013123,2]
[341794690,1731233446768,-284489.01054578,0.00013123,2]
[341794775,1731233483088,870.16,0.00010959,2]
[341794776,1731233513822,300.221438,0.00027,60]
[341794777,1731233586868,927.77629536,0.00027,60]
[341794778,1731233741583,10311.51,0.00012492,2]
[341794779,1731233753598,164.71,0.00012492,2]
[341794780,1731233766957,500.0,0.00021917,30]
[341794781,1731233767239,500.0,0.00021917,30]
[341794782,1731233767514,500.0,0.00021917,30]
[341794783,1731233767910,500.0,0.00021917,30]
[341794784,1731233768185,500.0,0.00021917,30]
[341794785,1731233769453,500.0,0.00021917,30]
[341794786,1731233769628,500.0,0.00021917,30]
[341794787,1731233769712,500.0,0.00021917,30]
[341794788,1731233770025,500.0,0.00021917,30]
[341794789,1731233770141,500.0,0.00021917,30]
[341794790,1731233770231,500.0,0.00021917,30]
[341794791,1731233770294,500.0,0.00021917,30]
[341794792,1731233770489,500.0,0.00021917,30]
[341794793,1731233770773,500.0,0.00021917,30]
[341794794,1731233771051,500.0,0.00021917,30]
[341794795,1731233771358,500.0,0.00021917,30]
[341794796,1731233771670,500.0,0.00021917,30]
[341794797,1731233771966,500.0,0.00021917,30]
[341794798,1731233772199,629.01621794,0.00021917,30]
[341794799,1731233791864,1487.15605075,0.00021,30]
[341794802,1731233948740,250.0,0.00012259,2]
[341794806,1731234030952,200.0,0.00012268,2]
[341794807,1731234050656,884.72,0.00012251,2]
[341794809,1731234068873,457.27,0.00010333,2]
[341794810,1731234106757,-1000.0,0.00012509,2]
[341794811,1731234131456,-300.0,0.00012526,2]
[341794812,1731234131478,-23900.0,0.00012527,2]
[341794813,1731234131498,-837.11,0.00012544,2]
[341794814,1731234131519,-250.0,0.00012586,2]
[341794815,1731234131538,-2760.08,0.00012591,2]
[341794816,1731234131559,-457.27,0.00012597,2]
[341794817,1731234131580,-753.7,0.00012642,2]
[341794818,1731234131601,-430.47,0.00012957,2]
[341794819,1731234131621,-895.39,0.00012998,2]
[341794820,1731234131641,-272.67358338,0.00013023,2]
[341794821,1731234131662,-298.26742101,0.00013023,2]
[341794822,1731234131683,-1280.58381401,0.00013023,2]
[341794823,1731234131702,-166.67419174,0.00013023,2]
[341794824,1731234131721,-150.0,0.00013046,2]
[341794825,1731234131741,-526.69,0.00013047,2]
[341794826,1731234131768,-2721.09098986,0.00013047,2]
[341794827,1731234176727,791.43,0.00012227,2]
[341794828,1731234231534,215.23,0.00012437,2]
[341794837,1731234317679,2726.86,0.00012462,2]
[341794838,1731234335774,174.02719838,0.00012453,2]
[341794844,1731234371980,-10983.55206234,0.00012522,2]
[341794845,1731234372002,-421.35,0.00012536,2]
[341794846,1731234372023,-500.0,0.00012553,2]
[341794847,1731234372048,-187.19,0.00012579,2]
[341794848,1731234372069,-1089.79,0.0001261,2]
[341794849,1731234372091,-1121.28,0.00012622,2]
[341794850,1731234372112,-417.3485034,0.00012844,2]
[341794851,1731234400938,250.0,0.00012487,2]
[341794852,1731234425130,-426.22825879,0.00012794,2]
[341794853,1731234425151,-2606.37405882,0.00012923,2]
[341794854,1731234425173,-1120.51083725,0.00013023,2]
[341794855,1731234425196,-268.4406789,0.00013023,2]
[341794856,1731234425219,-160.07297676,0.00013023,2]
[341794857,1731234425241,-160.07297675,0.00013023,2]
[341794858,1731234425263,-300.0,0.00013046,2]
[341794859,1731234425283,-150.0,0.00013046,2]
[341794860,1731234425304,-1231.4918493,0.00013047,2]
[341794861,1731234434131,-267.65648427,0.00013023,2]
[341794862,1731234434155,-160.07297675,0.00013023,2]
[341794863,1731234434176,-36.33940269,0.00013047,2]
[341794864,1731234438189,-362.20317307,0.00013047,2]
[341794865,1731234439327,-160.07297675,0.00013023,2]
[341794866,1731234439349,-3317.54458508,0.00013047,2]
[341794867,1731234439371,-940.87,0.00013047,2]
[341794868,1731234439392,-1339.6,0.00013047,2]
[341794869,1731234439414,-3680.38,0.00013047,2]
[341794870,1731234439436,-150.99,0.00013047,2]
[341794871,1731234439806,-614.31,0.00013047,2]
[341794872,1731234439827,-225.13,0.00013047,2]
[341794873,1731234439851,-268.44067885,0.00013087,2]
[341794874,1731234439872,-1120.51083721,0.00013105,2]
[341794875,1731234439892,-267.65648423,0.00013119,2]
[341794876,1731234439913,-369.77191561,0.00013122,2]
[341794877,1731234439936,-500.0,0.00013122,2]
[341794878,1731234439959,-500.0,0.00013122,2]
[341794879,1731234439983,-500.0,0.00013122,2]
[341794880,1731234440009,-500.0,0.00013122,2]
[341794881,1731234440033,-500.0,0.00013122,2]
[341794882,1731234440057,-500.0,0.00013122,2]
[341794883,1731234440080,-500.0,0.00013122,2]
[341794884,1731234440103,-308.27023825,0.00013122,2]
[341794885,1731234441579,205.0,9.8e-05,2]
[341794886,1731234450097,-160.07297675,0.00013024,2]
[341794887,1731234450120,-160.07297675,0.00013024,2]
[341794888,1731234450143,-191.72976175,0.00013122,2]
[341794889,1731234450167,-152.50801486,0.00013122,2]
[341794890,1731234453034,8105.05,0.00012396,2]
[341794892,1731234478948,1000.0,0.00012465,2]
[341794893,1731234482721,5605.43843082,0.0001,2]
[341794904,1731234505702,150.0,0.00012445,2]
[341794908,1731234551130,-150.0,0.00012849,2]
[341794909,1731234551151,-4210.25020709,0.00013,2]
[341794910,1731234551173,-78.14833713,0.00013024,2]
[341794911,1731234553093,-81.92463962,0.00013024,2]
[341794912,1731234553117,-160.07297675,0.00013024,2]
[341794913,1731234553138,-167.60593486,0.00013113,2]
[341794914,1731234569091,-466.36726344,0.00013113,2]
[341794915,1731234569114,-37.24302683,0.00013122,2]
[341794922,1731234631584,-7065.95115976,0.0001257,2]
[341794923,1731234631640,-1992.11226354,0.0001257,2]
[341794924,1731234631874,-1146.8165767,0.0001257,2]
[341794925,1731234631883,-300.0,0.00013121,2]
[341794926,1731234631892,-150.0,0.00013121,2]
[341794927,1731234631901,-310.24895831,0.00013122,2]
[341794928,1731234631911,-500.0,0.00013122,2]
[341794929,1731234631920,-500.0,0.00013122,2]
[341794930,1731234631930,-500.0,0.00013122,2]
[341794931,1731234631939,-500.0,0.00013122,2]
[341794932,1731234631948,-500.0,0.00013122,2]
[341794933,1731234631958,-500.0,0.00013122,2]
[341794934,1731234631967,-500.0,0.00013122,2]
[341794935,1731234631976,-500.0,0.00013122,2]
[341794936,1731234631986,-637.9207227,0.00013122,2]
[341794937,1731234631995,-500.0,0.00013122,2]
[341794938,1731234632004,-500.0,0.00013122,2]
[341794939,1731234632013,-500.0,0.00013122,2]
[341794940,1731234632024,-500.0,0.00013122,2]
[341794941,1731234632033,-500.0,0.00013122,2]
[341794942,1731234632043,-500.0,0.00013122,2]
[341794943,1731234632052,-500.0,0.00013122,2]
[341794944,1731234632062,-1765.683,0.00013122,2]
[341794945,1731234632071,-172.69,0.00013122,2]
[341794946,1731234632080,-300.0,0.00013122,2]
[341794947,1731234632090,-5897.56665263,0.00013123,2]
[341794948,1731234632102,-28994.32392118,0.00013123,2]
[341795017,1731234638342,-54377.86405511,0.00013123,2]
[341795019,1731234638354,-2543.9663952,0.00013123,2]
[341795027,1731234638427,-1820.34579704,0.00013123,2]
[341795029,1731234638438,-3080.085,0.00013123,2]
[341795039,1731234638521,-1599.8,0.00013123,2]
[341795041,1731234638532,-1156.21016415,0.00013123,2]
[341795043,1731234638543,-151616.74699202,0.00013123,2]
[341795084,1731234638983,-2045.07756255,0.00013123,2]
[341795101,1731234639141,-51.56320708,0.00013123,2]
[341795103,1731234639152,-3568118.9139228,0.00013123,2]
[341795104,1731234639162,-839000.85773326,0.00013123,2]
[341795113,1731234639298,-713.68795943,0.00013123,2]
[341795185,1731234640216,-73.82041446,0.00013123,2]
[341795446,1731234642627,-3.02331293,0.00013123,2]
[341795450,1731234642675,-13352.0,0.00013123,2]
[341795451,1731234642686,-1909.82450252,0.00013123,2]
[341795467,1731234642855,-39445.80031654,0.00013123,2]
[341795483,1731234642997,-39627.5,0.00013123,2]
[341795485,1731234643009,-5235.86549363,0.00013123,2]
[341795488,1731234643020,-4003.39922361,0.00013123,2]
[341795490,1731234643031,-932.93156282,0.00013123,2]
[341795492,1731234643042,-1022.87250668,0.00013123,2]
[341795494,1731234643053,-47307.19053754,0.00013123,2]
[341795714,1731234645576,-3964.12396,0.00013123,2]
[341795749,1731234645783,-59711.33045883,0.00013123,2]
[341795761,1731234645852,-94945.16359823,0.00013123,2]
[341795773,1731234645914,-3987.4128,0.00013123,2]
[341795777,1731234645927,-3804.16446406,0.00013123,2]
[341796094,1731234719241,11090.29,0.00012456,2]
[341796096,1731234733442,199.99,0.00027,120]
[341796097,1731234774938,2000.0,0.00012446,2]
[341796098,1731234789255,870.86,0.00012446,2]
[341796099,1731234790721,5000.0,0.000125,2]
[341796100,1731234809235,250.0,0.00012436,2]
[341796109,1731234927078,-300.0,0.00013022,2]
[341796110,1731234927100,-272.67358338,0.00013023,2]
[341796111,1731234927121,-202.7935973,0.00013023,2]
[341796112,1731234927143,-1036.93431437,0.00013023,2]
[341796113,1731234927165,-5352.59850495,0.00013023,2]
[341796114,1731234928063,450.86,0.00010476,2]
[341796115,1731234929420,200.0,0.00012394,2]
[341796116,1731234954703,412.57,0.00012403,2]
[341796117,1731234979255,1121.28,0.0001227,2]
[341796118,1731234986384,476.61,0.0001227,2]
[341796119,1731234987318,152.19,0.0001227,2]
[341796120,1731234987551,152.19,0.000123,2]
[341796121,1731234988036,152.19,0.00012331,2]
[341796122,1731234988221,152.19,0.00012362,2]
[341796123,1731234988439,152.19,0.00012392,2]
[341796124,1731234994340,895.39,0.00012269,2]
[341796125,1731235036325,173.79,9.916e-05,2]
[341796126,1731235064694,1089.79,0.00012281,2]
[341796128,1731235170940,1000.0,0.00012232,2]
[341796129,1731235175400,250.0,0.00012232,2]
[341796130,1731235188518,60000.0,0.00027,60]
[341796131,1731235205873,2760.08,0.00012339,2]
[341796132,1731235224792,3921.05033604,0.00022,30]
[341796133,1731235255349,1000.0,0.00027,60]
[341796134,1731235256624,1000.0,0.00027,60]
[341796135,1731235264690,1000.0,0.00027,60]
[341796136,1731235274151,1000.0,0.00027,60]
[341796137,1731235286160,1203.0,0.00027,60]
[341796138,1731235354836,794.11,0.00012353,2]
[341796139,1731235368021,150.0,0.00012341,2]
[341796140,1731235386999,500.0,0.00012337,2]
[341796141,1731235421814,-174.12719071,0.0001264,2]
[341796142,1731235421839,-426.22825879,0.0001264,2]
[341796143,1731235425462,397.667038,0.00027,120]
[341796144,1731235465549,-450.86,0.0001274,2]
[341796146,1731235524166,250.0,0.00012295,2]
[341796147,1731235524352,7.7845505,0.00012295,2]
[341796148,1731235524376,427.6454495,0.00012295,2]
[341796149,1731235531522,1452.01,0.00012312,2]
[341796151,1731235562276,-163.38905925,0.00012823,2]
[341796152,1731235562300,-385.61094075,0.00012883,2]
[341796153,1731235566444,161.65,9.856e-05,2]
[341796154,1731235602155,506.81,0.00010959,2]
[341796155,1731235630972,222.54,0.00012375,2]
[341796156,1731235637562,-90.99905925,0.00012883,2]
[341796157,1731235637583,-776.28528578,0.00012923,2]
[341796158,1731235637603,-150.0,0.00012986,2]
[341796159,1731235637625,-1142.84647455,0.00013022,2]
[341796160,1731235637646,-1142.84647455,0.00013022,2]
[341796161,1731235637668,-1142.84647455,0.00013022,2]
[341796162,1731235637690,-166.67419174,0.00013023,2]
[341796163,1731235637712,-1143.87929659,0.00013023,2]
[341796164,1731235637732,-10879.54487837,0.00013023,2]
[341796165,1731235637753,-1063.16444664,0.00013023,2]
[341796166,1731235637778,-1143.87929653,0.00013087,2]
[341796167,1731235637803,-1412.546,0.00013112,2]
[341796168,1731235637825,-48451.84827865,0.00013112,2]
[341796169,1731235637846,-807.500001,0.00013112,2]
[341796170,1731235637868,-160.867206,0.00013112,2]
[341796171,1731235637890,-2721.09,0.00013112,2]
[341796172,1731235637911,-150.99,0.00013112,2]
[341796173,1731235637933,-11973.97,0.00013113,2]
[341796174,1731235637954,-12960.409658,0.00013113,2]
[341796175,1731235637974,-41164.7276823,0.00013113,2]
[341796176,1731235638000,-1061353.0852955,0.00013113,2]
[341796177,1731235653396,-345.46503498,0.00013022,2]
[341796178,1731235653416,-158.82650506,0.00013022,2]
[341796179,1731235653437,-204.50518752,0.00013022,2]
[341796180,1731235653458,-1142.84647455,0.00013022,2]
[341796181,1731235653482,-1142.84647455,0.00013023,2]
[341796182,1731235653504,-1142.84647455,0.00013023,2]
[341796183,1731235653528,-95862.66384879,0.00013113,2]
[341796184,1731235657489,500.0,0.000123,4]
[341796185,1731235659810,-100000.0,0.00012883,2]
[341796186,1731235659873,1100.0,0.000124,4]
[341796187,1731235661677,1700.0,0.000125,4]
[341796188,1731235662496,-100000.0,0.00012883,2]
[341796189,1731235664298,-2200.0,0.000126,4]
[341796190,1731235664323,-97800.0,0.00012883,2]
[341796191,1731235667609,-2800.0,0.000127,4]
[341796192,1731235667631,-97200.0,0.00012883,2]
[341796193,1731235668629,-500.0,0.000128,4]
[341796194,1731235668650,-99500.0,0.00012883,2]
[341796195,1731235670448,-100000.0,0.00012883,2]
[341796196,1731235679479,550.1,0.00010436,2]
[341796197,1731235684077,426.89,0.00012335,2]
[341796198,1731235686718,1285.76,0.00027,60]
[341796199,1731235695951,966.71,0.00027,60]
[341796200,1731235696497,10000.0,0.00027,60]
[341796209,1731235712848,966.71,0.00027,60]
[341796210,1731235723215,966.71,0.00027,60]
[341796213,1731235745572,-550.1,0.000127,2]
[341796214,1731235745593,-300.0,0.00012882,2]
[341796215,1731235745612,-351.00668478,0.00012882,2]
[341796216,1731235745633,-500.0,0.00012882,2]
[341796217,1731235745656,-500.0,0.00012882,2]
[341796218,1731235745677,-500.0,0.00012882,2]
[341796219,1731235745698,-500.0,0.00012882,2]
[341796220,1731235745719,-500.0,0.00012882,2]
[341796221,1731235745739,-500.0,0.00012882,2]
[341796222,1731235745761,-500.0,0.00012882,2]
[341796223,1731235745783,-500.0,0.00012882,2]
[341796224,1731235745806,-500.0,0.00012882,2]
[341796225,1731235745828,-500.0,0.00012882,2]
[341796226,1731235745849,-500.0,0.00012882,2]
[341796227,1731235745872,-500.0,0.00012882,2]
[341796228,1731235745895,-500.0,0.00012882,2]
[341796229,1731235745917,-500.0,0.00012882,2]
[341796230,1731235745939,-500.0,0.00012882,2]
[341796231,1731235745960,-500.0,0.00012882,2]
[341796232,1731235745982,-500.0,0.00012882,2]